Cogmind - Beta 15 --- EXPLORER MODE // 2025.08.20 @ 21:29:51 Player: Aydz Result: Self-destructed Performance ------------- Evolutions (2) 1000 Regions Visited (3) 600 Robots Destroyed (28) 140 Value Destroyed (831) 831 Prototype IDs (13) 260 Alien Tech Used (0) 0 Bonus (0) 0 TOTAL SCORE: 2831 Bonus ------- None Cogmind --------- Core Integrity 468/550 Matter 257/300 Energy 275/275 System Corruption 0% Temperature Cool (0) Movement Walking (123) Location -8/Materials Parts ------- > --- POWER (2) -------- Deuterium Engine > --- PROPULSION (3) --- Improved Aluminum Leg Carbon-fiber Leg Titanium Leg > --- UTILITY (5) ------ Improved Heat Sink Improved Sensor Array Improved Signal Interpreter Makeshift Light Armor Plating > --- WEAPON (2) ------- Beam Cannon Particle Cannon > --- INVENTORY (5) ---- Gun Armor EM Pulse Cannon EM Pulse Cannon Peak State ------------ > --- POWER ------------ Deuterium Engine > --- PROPULSION ------- Improved Aluminum Leg Carbon-fiber Leg Titanium Leg > --- UTILITY ---------- Improved Sensor Array Improved Signal Interpreter Makeshift Light Armor Plating > --- WEAPON ----------- EM Pulse Cannon EM Pulse Cannon > --- INVENTORY -------- Gun Armor Beam Cannon Particle Cannon [Rating: 28] Favorites ----------- Power Ion Engine Engine Ion Engine Propulsion Aluminum Leg Leg Aluminum Leg Wheel Subdweller Monowheel Utility Signal Interpreter Device Sensor Array Processor Signal Interpreter Protection Makeshift Light Armor Plating Weapon Light Cannon Energy Gun Small Laser Energy Cannon Beam Cannon Ballistic Gun Light Assault Rifle Ballistic Cannon Light Cannon Build | -11 -10 -10 -8 ------- Run | Yrd Mat Sub Mat Slots Evolved 5 | . 1 . 4 Power 1 | . . . 1 Propulsion 1 | . . . 1 Utility 3 | . 1 . 2 Weapon . | . . . . Parts Attached 28 | 7 4 7 10 Power 3 | 1 1 . 1 Engine 3 | 1 1 . 1 Core . | . . . . Reactor . | . . . . Propulsion 6 | 2 . 1 3 Treads . | . . . . Leg 5 | 2 . . 3 Wheel 1 | . . 1 . Hover . | . . . . Flight . | . . . . Utility 9 | 2 1 3 3 Device 5 | 1 . 2 2 Storage . | . . . . Processor 2 | . 1 . 1 Hackware . | . . . . Protection 2 | 1 . 1 . Artifact . | . . . . Weapon 10 | 2 2 3 3 Energy Gun 1 | 1 . . . Energy Cannon 4 | . . 1 3 Ballistic Gun 1 | 1 . . . Ballistic Cannon 4 | . 2 2 . Launcher . | . . . . Special Weapon . | . . . . Impact Weapon . | . . . . Slashing Weapon . | . . . . Piercing Weapon . | . . . . Special Melee Weapon . | . . . . Unidentified Prototypes . | . . . . Parts Lost 3 | . . 3 . Power . | . . . . Propulsion 1 | . . 1 . Utility . | . . . . Weapon 2 | . . 2 . Highest Loss Streak 3 | . . 3 . To Critical Strikes . | . . . . Average Backups 2 | . 2 3 2 Power . | . . 1 . Propulsion . | . . . . Utility . | . . . 1 Weapon 1 | . 1 1 1 Tool/Special . | . . . . Unused Backups 1 | . . . 1 Power . | . . . . Propulsion . | . . . . Utility 1 | . . . 1 Weapon . | . . . . Tool/Special . | . . . . Average Slot Usage (%) 92 | . 96 92 75 Engine 11 | . 12 12 9 Leg 21 | . 25 17 20 Wheel 3 | . . 6 2 Device 10 | . 12 10 9 Processor 10 | . 8 12 8 Protection 11 | . 12 12 8 Energy Cannon 2 | . . 2 10 Ballistic Cannon 19 | . 24 17 5 Peak Build Rating 28 | 7 8 14 28 Average Rating 11 | 5 7 11 24 On Entrance 6 | . 7 8 10 Naked Turns . | . . . . Heaviest Build 26 | 9 15 17 26 Greatest Support 45 | 20 20 20 45 Greatest Overweight (x) 2 | 2 . 1 . Average Overweight (x) . | . . . . Largest Inventory Capacity 5 | 5 5 5 5 Average Capacity 5 | 5 5 5 5 Most Carried 5 | . 3 5 5 Average Carried 2 | . 2 3 2 Final Capacity 5 | 5 5 5 5 Final Carried 5 | . 3 5 3 Class Distribution -------------------- 100% | Hacker-Mutant Dominant Class ---------------- Hacker-Mutant | -10/Materials Hacker-Mutant | -10/Subcaves Hacker-Mutant | -8/Materials Resources | -11 -10 -10 -8 ----------- Run | Yrd Mat Sub Mat Matter Collected 1428 | 208 456 333 431 Remotely . | . . . . Salvage Created 822 | . 242 230 350 Parts 38 | . 21 5 12 Haulers Intercepted 1 | . 1 . . Recyclers Shooed . | . . . . Parts Field Recycled . | . . . . Retrieved Matter . | . . . . Parts Self-Destructed . | . . . . Prevented . | . . . . Kills | -11 -10 -10 -8 ------- Run | Yrd Mat Sub Mat Combat Hostiles Destroyed 23 | . 9 5 9 Cannons 23 | . 9 5 9 Classes Destroyed 8 | . 4 1 3 Worker 1 | . . . 1 Hauler 1 | . 1 . . Watcher 3 | . 3 . . Swarmer 7 | . 4 . 3 Grunt 7 | . 5 . 2 Sentry 2 | . . . 2 Hunter 2 | . . . 2 Subdweller 5 | . . 5 . Best Kill Streak 4 | . 4 2 4 Combat Bots Only 4 | . 4 2 4 Max Kills in Single Turn 1 | . 1 1 1 Gunslinging . | . . . . Exploded . | . . . . Melee . | . . . . Uniques/NPCs Destroyed . | . . . . Combat | -11 -10 -10 -8 -------- Run | Yrd Mat Sub Mat Hostile Shots Fired 168 | . 29 62 77 Missed 52 | . 13 17 22 Hits 116 | . 16 45 55 Projectile 116 | . 16 45 55 Critical Strikes 2 | . 2 . . Damage Taken 1279 | . 121 718 440 Core 228 | . 7 139 82 Absorbed by Shields . | . . . . Ignored by Resistances 714 | . 78 358 278 Regen/Repaired (Parts) 50 | . 50 . . Core Remaining (%) 70 | 100 . 41 . Volleys Fired 158 | . 43 83 32 Largest 2 | . 2 2 2 Hottest 131 | . 60 90 131 Shots Fired 309 | . 86 166 57 Gun . | . . . . Cannon 309 | . 86 166 57 Launcher . | . . . . Special . | . . . . Kinetic 234 | . 86 142 6 Thermal 65 | . . 24 41 Explosive . | . . . . Electromagnetic 10 | . . . 10 Robot Hit Streak 37 | . 15 37 15 Robot Miss Streak 2 | . 2 2 2 Penetration Max . | . . . . Secondary Targets . | . . . . Shots Hit Robots 147 | . 35 68 44 Core Hits 47 | . 16 16 15 Critical Kills . | . . . . Critical Parts Destroyed . | . . . . Critical Strikes 5 | . 1 3 1 Blast 5 | . 1 3 1 Melee Attacks . | . . . . Impact . | . . . . Slashing . | . . . . Piercing . | . . . . Sneak Attacks . | . . . . Combat Hostiles . | . . . . Follow-up Attacks . | . . . . Damage Inflicted 2493 | . 610 981 902 Guns . | . . . . Cannons 2462 | . 610 981 871 Explosions 31 | . . . 31 Melee . | . . . . Ramming . | . . . . Kinetic 1643 | . 610 981 52 Thermal 712 | . . . 712 Explosive . | . . . . Electromagnetic 138 | . . . 138 Impact . | . . . . Slashing . | . . . . Piercing . | . . . . Highest Corruption . | . . . . Average Corruption . | . . . . Corruption Purged . | . . . . Corruption Blocked . | . . . . Overload Shots . | . . . . Overflow Damage 28 | . . . 28 Projectiles 28 | . . . 28 Explosions . | . . . . Melee . | . . . . Knockbacks 22 | . 10 12 . Impact . | . . . . Kinetic 20 | . 8 12 . Secondary 2 | . 2 . . Self-Inflicted Damage . | . . . . Shots . | . . . . Rammed . | . . . . Targets Rammed . | . . . . Kicked . | . . . . Crushed . | . . . . Highest Temperature 306 | . 219 3 306 Average Temperature 76 | . 50 3 110 Received Heat Transfer 441 | . 126 216 99 Effects 1 | . . . 1 Interference 1 | . . . 1 Siege Activations . | . . . . Martial Activations . | . . . . Shielding Activations . | . . . . Robots Disrupted . | . . . . Combat Hostiles . | . . . . Robots Corrupted . | . . . . Combat Hostiles . | . . . . Parts Fried . | . . . . Impact Corruptions . | . . . . Robots Melted . | . . . . Combat Hostiles . | . . . . Parts Melted 4 | . . . 4 Heat Transferred 1382 | . . . 1382 Parts Sabotaged . | . . . . Parts Stolen . | . . . . Parts Stripped . | . . . . Power Chain Reactions 1 | . . . 1 Alert | -11 -10 -10 -8 ------- Run | Yrd Mat Sub Mat Maximum Alert Level . | . . . . Low Security (%) 100 | 100 100 . 100 Level 1 . | . . . . Level 2 . | . . . . Level 3 . | . . . . Level 4 . | . . . . Level 5 . | . . . . High Security . | . . . . Max Security . | . . . . Peak Influence 140 | . 85 . 140 Initial . | . . . . Average 13 | . 6 . 41 Influence Increases 587 | . 270 . 317 Destroy 0b10 Robot/C 360 | . 180 . 180 Destroy 0b10 Robot/NC 25 | . 20 . 5 Destroy Leader 108 | . 48 . 60 Successful Hack 37 | . 15 . 22 Disable Machine 8 | . 4 . 4 Destroy Structure 4 | . 3 . 1 Lose Combat Pursuer 45 | . . . 45 Influence Decreases 440 | . 270 . 170 Time Decay 440 | . 270 . 170 Squads Dispatched 2 | . . . 2 Investigation 1 | . . . 1 Extermination . | . . . . Reinforcement 1 | . . . 1 Assault . | . . . . Garrison . | . . . . Intercept . | . . . . Searches Triggered . | . . . . Construction Impeded . | . . . . Haulers Reinforced . | . . . . Active Scanning Responses . | . . . . Cargo Convoy Interrupts . | . . . . Stealth | -11 -10 -10 -8 --------- Run | Yrd Mat Sub Mat Distress Signals 3 | . . . 3 Communications Jammed . | . . . . Distress Signals . | . . . . Times Spotted 33 | . 12 7 14 Peak Tracking Total 11 | . 4 2 11 Tactical Retreats 3 | . . 1 2 Traps | -11 -10 -10 -8 ------- Run | Yrd Mat Sub Mat Traps Triggered 3 | . . 3 . Indirectly . | . . . . Trap Hack Attempts . | . . . . Triggered . | . . . . Disarmed . | . . . . Reprogrammed . | . . . . Reused . | . . . . Traps Extracted . | . . . . Installed . | . . . . Triggered . | . . . . Machines | -11 -10 -10 -8 ---------- Run | Yrd Mat Sub Mat Machines Disabled 3 | . 1 1 1 Max in Single Turn 1 | . 1 1 1 Machines Repaired . | . . . . Machines Dismantled . | . . . . Machines Sabotaged . | . . . . Overloaded Fab Kills . | . . . . Hacking | -11 -10 -10 -8 --------- Run | Yrd Mat Sub Mat Machines Accessed 13 | . 11 1 1 Terminals 9 | . 8 . 1 Fabricators . | . . . . Repair Stations 1 | . 1 . . Recycling Units 2 | . 2 . . Scanalyzers . | . . . . Garrison Access . | . . . . Total Hacks 55 | . 42 9 4 Successful 41 | . 30 9 2 Failed 14 | . 12 . 2 Catastrophic . | . . . . Database Lockouts . | . . . . Manual 39 | . 35 . 4 Terminals 36 | . 32 . 4 Fabricators . | . . . . Repair Stations 4 | . 4 . . Recycling Units 6 | . 6 . . Scanalyzers . | . . . . Garrison Access . | . . . . Terminal Hacks 19 | . 10 9 . Record 8 | . . 8 . Robot Analysis 4 | . 4 . . Prototype ID Bank 1 | . 1 . . Terminal Index 1 | . 1 . . Locate Traps 3 | . 3 . . Hauler Manifests 1 | . 1 . . Proto ID Catalog 1 | . . 1 . Fabricator Hacks . | . . . . Repair Station Hacks 4 | . 4 . . Scan Component 2 | . 2 . . Repair 2 | . 2 . . Recycling Unit Hacks 2 | . 2 . . Retrieve Components 2 | . 2 . . Scanalyzer . | . . . . Garrison Access Hacks . | . . . . Unauthorized Hacks 16 | . 14 . 2 Terminals 14 | . 12 . 2 Botnet 7 | . 7 . . Operators 1 | . . . 1 Skim 6 | . 5 . 1 Fabricators . | . . . . Repair Stations . | . . . . Recycling Units 2 | . 2 . . Reject 1 | . 1 . . Recyclers 1 | . 1 . . Scanalyzers . | . . . . Garrison Access . | . . . . Data Cores Recovered . | . . . . Used . | . . . . Hacking Detections 12 | . 11 . 1 Full Trace Events 1 | . . . 1 Feedback Events . | . . . . Feedback Blocked . | . . . . Robot Schematics Acquired . | . . . . Robots Built . | . . . . Authchips . | . . . . Time . | . . . . Total Robot Build Rating . | . . . . Part Schematics Acquired . | . . . . Parts Built . | . . . . Authchips . | . . . . Time . | . . . . Total Part Build Rating . | . . . . Parts Repaired 2 | . 2 . . Time 52 | . 52 . . Parts Recycled . | . . . . Recycled Matter . | . . . . Retrieved Matter . | . . . . Retrieved Components 5 | . 5 . . Parts Scanalyzed . | . . . . Part Schematics Acquired . | . . . . Parts Damaged . | . . . . Bothacking | -11 -10 -10 -8 ------------ Run | Yrd Mat Sub Mat Used RIF Installer . | . . . . Robots Hacked . | . . . . Non-combat . | . . . . Combat . | . . . . Robot Hacks Applied . | . . . . Relay Couplers Released . | . . . . Fabnet Peak Effective % . | . . . . Robots Rewired . | . . . . Allies Hacked . | . . . . Hacks Repelled . | . . . . Allies | -11 -10 -10 -8 -------- Run | Yrd Mat Sub Mat Total Allies . | . . . . Largest Group . | . . . . Highest-Rated Group . | . . . . Highest-Rated Ally . | . . . . Total Orders . | . . . . Ally Attacks . | . . . . Total Damage . | . . . . Kills . | . . . . Allies Corrupted . | . . . . Allies Melted . | . . . . Intel | -11 -10 -10 -8 ------- Run | Yrd Mat Sub Mat Active Infowar (turns) 2685 | 36 1362 1011 276 Optics 640 | . . 640 . Sensors 2045 | 36 1362 371 276 Robot Analysis Total 4 | . 4 . . Derelict Logs Recovered . | . . . . Drone Launches . | . . . . Drone Recoveries . | . . . . Exploration | -11 -10 -10 -8 ------------- Run | Yrd Mat Sub Mat Turns Passed 3110 | 57 1362 1370 321 Spaces Moved 1986 | 34 847 959 146 Core 10 | 10 . . . Treads . | . . . . Legs 1410 | 24 847 434 105 Wheels 566 | . . 525 41 Hover . | . . . . Flight . | . . . . Fastest Speed 50 | 50 120 110 110 Average Speed 117 | 117 120 114 118 Slowest Speed 190 | 150 120 190 123 Overloaded Moves . | . . . . Propulsion Burnouts . | . . . . Robots Hopped . | . . . . Potential Cave-ins . | . . . . Cave-ins Triggered . | . . . . Exploration Rate (%) 40 | 3 97 44 19 Regions Visited 3 Branch Regions 1 Pre-discovered Areas 2 | . 1 1 . Known Exits Taken 3 | 1 1 1 . Unknown Exits Taken . | . . . . Scrap Searched . | . . . . Spaces Dug 1 | . 1 . . Terrain Destroyed 1 | . 1 . . Melee . | . . . . Projectile 1 | . 1 . . AOE . | . . . . Terrain Rammed . | . . . . Walls Destroyed . | . . . . Machines Disabled . | . . . . Actions | -11 -10 -10 -8 --------- Run | Yrd Mat Sub Mat Total 2445 | 47 1105 1058 235 Wait 246 | 7 206 1 32 Move 1983 | 33 846 958 146 Hop . | . . . . Pick Up 5 | . 3 2 . Fast Attach 22 | 7 4 2 9 Attach 5 | . . 2 3 Detach 5 | . . 2 3 Swap 8 | . 1 4 3 Drop 13 | . 2 4 7 Fire 158 | . 43 83 32 Melee . | . . . . Ram . | . . . . Kick . | . . . . Crush . | . . . . Escape Stasis . | . . . . Rewire . | . . . . Trap . | . . . . Miscellaneous . | . . . . Route ------- -11/Scrapyard -10/Materials (discovered 6 exits: *Mat x3 / *Min x2 / *Sub) -10/Subcaves (discovered 3 exits: *Mat x2 / [*Scr]) -8/Materials (discovered 3 exits: Fac x3) History --------- Turn | Location | Event 17 | -11/Scrapyard | Identified exit to Materials 17 | -11/Scrapyard | Discovered exit to Materials (range 15) 58 | -11/Scrapyard | Entered Materials 58 | -10/Materials | Evolved 1 slot: Utility x1 188 | -10/Materials | Repaired Ion Engine 216 | -10/Materials | Repaired Lgt. Cannon 313 | -10/Materials | Build established: Hacker-Mutant 433 | -10/Materials | Identified exit to Mines 433 | -10/Materials | Discovered exit to Mines (range 7) 716 | -10/Materials | Identified exit to Materials 716 | -10/Materials | Discovered exit to Materials (range 7) 806 | -10/Materials | Discovered exit to Materials (range 13) 812 | -10/Materials | Learned Storage stockpile data 886 | -10/Materials | Identified exit to Subcaves 948 | -10/Materials | Learned location of Recycling (-7) 1046 | -10/Materials | Learned location of 3 exits from Materials 1128 | -10/Materials | Loaded intel: 14 trap records 1186 | -10/Materials | Learned 2 Mines zone layouts 1420 | -10/Materials | Entered Subcaves 1421 | -10/Subcaves | Approached by a straggling Scientist 1486 | -10/Subcaves | Identified exit to Materials 1486 | -10/Subcaves | Discovered exit to Materials (range 15) 1497 | -10/Subcaves | Shifting Twisted Machinery released Mak. Light Armor Plating 1515 | -10/Subcaves | Shifting Twisted Machinery released Sub. Power Source 1585 | -10/Subcaves | Learned location of Zion (-6) 1585 | -10/Subcaves | Met a Zionite searching for "candidates" 2096 | -10/Subcaves | Lost 3 parts (1n2w) 2156 | -10/Subcaves | A swath of the cavern ceiling suddenly collapsed 2282 | -10/Subcaves | Visited 4L-MR0's lab 2293 | -10/Subcaves | Found Gun Armor 2329 | -10/Subcaves | Discovered exit to Materials (range 8) 2369 | -10/Subcaves | Scientist uncovered a shortcut to Scraptown 2567 | -10/Subcaves | Core integrity fell below 50% 2691 | -10/Subcaves | A swath of the cavern ceiling suddenly collapsed 2790 | -10/Subcaves | Entered Materials 2790 | -8/Materials | Evolved 4 slots: Power x1, Propulsion x1, Utility x2 2791 | -8/Materials | Identified exit to Factory 3111 | -8/Materials | Self-destructed Last Messages --------------- 03072_ K-01 Serf collects debris. 03077_ Acquired 18 matter. 03080_ Acquired 59 matter. 03095_ Lgt. Nuclear Core melted. 03095_ Gauss Rifle melted. 03095_ Targeting Computer melted. 03095_ H-55 Commando destroyed. 03100_ Acquired 50 matter. 03111_ Connecting with Terminal... >>Trojan(Operators) Trojan loaded successfully. Testing... Operator tracking enabled and active. >>Trojan(Skim) Trojan loaded successfully. Testing... Terminal linked with 0 systems. Please expand to 4 more systems! 03111_ ALERT: Suspicious activity at Terminal M008. Dispatching Investigation squad. Map ----- +----------------------------------------------------+ | ##!!!!##???????#* "" # % ## ]]] == ???????? | | ??#####????????# # ]] == ??????? | | ???????????????# # ??????? | | ???????????????######## ??????? | | ??????????????????????# / ??????? | | ??????????????????????# ??????? | | ??????????????????????# ##########/#???????? | | ??????????????????????### % ###??????????????????? | | ???????????????########## #????????????????????? | | ??????????????+ """ + #????????????????????? | | ??????????????# "T" # #????????????????????? | | ??????????????# [# #????????????????????? | | ??????????????# ! [# #????????????????????? | | ??????????????########### #????????????????????? | | ????????????????????????+ +????????????????????? | | ????????????????????????# ##??####?????????????? | | ????????????????????????# = #?? ===#?????????????? | | ????????????????????????# #? ===#?????????????? | | ????????????????????????# # == #?????????????? | | ????????????????????????# + #?????????????? | | ??????? ########## # ] #?????????????? | | ??????? / # #?????????????? | | ??????? ###########+#########?????????????? | | ??????????????????????# #????????????????? | | ??????????????????????#""" """ #????????????????? | | ??????????????????????#"T@ """ #????????????????? | | ??????????????????????#""" """ #????????????????? | | ??????????????????????# """ #????????????????? | | ??????????????????????#] * t #????????????????? | | ??????????????????????###########????????????????? | | ?????????????????????????????????????????????????? | | ?????????????????????????????????????????????????? | | ?????????????????????????????????????????????????? | | ?????????????????????????????????????????????????? | | ?????????????????????????????????????????????????? | | ?????????????????????????????????????????????????? | | ?????????????????????????????????????????????????? | | ????????????????????????w????????????????????????? | | ?????????????????????????????????????????????????? | | ?????????????????????????????????????????????????? | | ?????????????????????????????????????????????????? | | ?????????????????????????????????????????????????? | | ?????????????????????????????????????????????????? | | ?????????????????????????????????????????????????? | | ?????????????????????????????????????????????????? | | ?????????????????????????????????????????????????? | | ?????????????????????????????????????????????????? | | ?????????????????????????????????????????????????? | | ?????????????????????????????????????????????????? | | ?????????????????????????????????????????????????? | +----------------------------------------------------+ Best States ------------- Heat Dissipation 45 Energy Generation 15 Energy Capacity 275 Matter Stores 300 Matter Capacity 300 Sight Range 21 Robot Scan Range 15 Terrain Scan Density 10 Armor Coverage 150 Resistance: KI 35 Resistance: TH 35 Resistance: EX 35 Resistance: EM 35 Resistance: I 35 Resistance: S 35 Resistance: P 35 Evasion (%) 55 Offensive Hacking 20 Item Schematics ----------------- None Robot Schematics ------------------ None Fabricated ------------ Nothing Repaired ---------- Ion Engine | 26% | -10/Materials Lgt. Cannon | 95% | -10/Materials Alien Tech Used ----------------- None Achievements -------------- Oops Challenges ------------ None Game ------ Seed ScanRecyclingDatajack Manual? 0 Play Time 00:37:54 Cumulative 41.2 hours Start 2025.08.20 @ 20:51:35 End 2025.08.20 @ 21:29:51 Sessions 1 Manual Loads 0 Difficulty Explorer Special Mode None Game No. 8 Rogue 0 Adventurer 0 Explorer 8 Win Type - Total 0 Types 0/0/0/0/0/0/0/0/0/0 Lore% 17 Gallery% 19 Achievement% 24 Wizard Run 0 Options --------- Layout 0 ASCII 0 Keyboard 0 Movement Mouse Keybinds 0 Fullscreen 2 Font 24/Terminus Map View 76x50 Zoom Use 0% Tactical HUD 1 Map Filters NONE Filters NONE Steam 1 RUN: d1e6c225-489a-4ff3-9195-33eba46bef93